Cogmind - Beta 15 @@@ ROGUE MODE // 2025.08.07 @ 18:50:37 Player: JuustuToug Result: Destroyed by D-53 Grenadier with Mini Grenade Launcher Performance ------------- Evolutions (0) 0 Regions Visited (2) 400 Robots Destroyed (16) 80 Value Destroyed (377) 377 Prototype IDs (2) 40 Alien Tech Used (0) 0 Bonus (0) 0 TOTAL SCORE: 897 Bonus ------- None Cogmind --------- Core Integrity 0/250 Matter 285/300 Energy 43/125 System Corruption 1% Temperature Cool (6) Movement Flying (37) Location -10/Mines Parts ------- > --- POWER (1) -------- Light Ion Engine > --- PROPULSION (2) --- Flight Unit Flight Unit > --- UTILITY (2) ------ Small Storage Unit Hacking Suite > --- WEAPON (2) ------- (None) > --- INVENTORY (8) ---- Flight Unit Flight Unit Medium Laser Light Assault Rifle Grenade Launcher Hammer Peak State ------------ > --- POWER ------------ Light Ion Engine > --- PROPULSION ------- Aluminum Leg Aluminum Leg > --- UTILITY ---------- Small Storage Unit Hacking Suite > --- WEAPON ----------- EM Pulse Gun Medium Laser > --- INVENTORY -------- Light Ion Engine Flight Unit Flight Unit Flight Unit Flight Unit Improved Heat Sink Medium Laser Hammer [Rating: 10] Favorites ----------- Power Light Ion Engine Engine Light Ion Engine Propulsion Aluminum Leg Leg Aluminum Leg Flight Unit Flight Unit Utility Small Storage Unit Storage Small Storage Unit Hackware Hacking Suite Weapon Medium Laser Energy Gun Medium Laser Impact Weapon Hammer Build | -11 -10 -10 ------- Run | Yrd Mat Min Slots Evolved . | . . . Power . | . . . Propulsion . | . . . Utility . | . . . Weapon . | . . . Parts Attached 18 | 6 8 4 Power 5 | 1 3 1 Engine 5 | 1 3 1 Core . | . . . Reactor . | . . . Propulsion 6 | 2 1 3 Treads . | . . . Leg 3 | 2 1 . Wheel . | . . . Hover . | . . . Flight 3 | . . 3 Utility 2 | 1 1 . Device . | . . . Storage 1 | 1 . . Processor . | . . . Hackware 1 | . 1 . Protection . | . . . Artifact . | . . . Weapon 5 | 2 3 . Energy Gun 4 | 2 2 . Energy Cannon . | . . . Ballistic Gun . | . . . Ballistic Cannon . | . . . Launcher . | . . . Special Weapon . | . . . Impact Weapon 1 | . 1 . Slashing Weapon . | . . . Piercing Weapon . | . . . Special Melee Weapon . | . . . Unidentified Prototypes . | . . . Corrupted Parts 1 | . . 1 System Corruption 1 | . . 1 Parts Lost 9 | . 3 6 Power 3 | . 2 1 Propulsion 3 | . . 3 Utility . | . . . Weapon 3 | . 1 2 Highest Loss Streak 4 | . 2 4 To Critical Strikes . | . . . Average Backups 6 | 2 6 7 Power 1 | . 1 . Propulsion 2 | . 3 2 Utility . | . . . Weapon 1 | . 1 3 Tool/Special . | . . . Unused Backups 9 | . 4 5 Power . | . . . Propulsion 3 | . 1 2 Utility 4 | . 3 1 Weapon 2 | . . 2 Tool/Special . | . . . Average Slot Usage (%) 91 | . 98 73 Engine 14 | . 14 14 Leg 21 | . 28 3 Flight 6 | . . 22 Storage 14 | . 14 14 Hackware 13 | . 12 14 Energy Gun 21 | . 27 4 Peak Build Rating 10 | 6 10 10 Average Rating 8 | 3 8 7 On Entrance 5 | . 6 10 Naked Turns . | . . . Heaviest Build 12 | 12 12 10 Greatest Support 20 | 20 20 8 Greatest Overweight (x) 3 | 2 . 3 Average Overweight (x) . | . . . Largest Inventory Capacity 8 | 8 8 8 Average Capacity 7 | 7 8 8 Most Carried 8 | 4 8 8 Average Carried 6 | 2 6 7 Final Capacity 8 | 8 8 8 Final Carried 8 | 3 8 6 Class Distribution -------------------- 100% | Mutant Dominant Class ---------------- Mutant | -10/Materials Mutant | -10/Mines Resources | -11 -10 -10 ----------- Run | Yrd Mat Min Matter Collected 360 | 167 173 20 Remotely . | . . . Salvage Created 514 | . 470 44 Parts 25 | . 21 4 Haulers Intercepted . | . . . Recyclers Shooed 1 | . 1 . Parts Field Recycled . | . . . Retrieved Matter . | . . . Parts Self-Destructed . | . . . Prevented . | . . . Kills | -11 -10 -10 ------- Run | Yrd Mat Min Combat Hostiles Destroyed 12 | . 9 3 Guns 12 | . 9 3 Classes Destroyed 5 | . 5 . Recycler 1 | . 1 . Operator 2 | . 2 . Watcher 1 | . 1 . Swarmer 6 | . 3 3 Grunt 6 | . 6 . Best Kill Streak 5 | . 5 3 Combat Bots Only 5 | . 5 3 Max Kills in Single Turn 1 | . 1 1 Gunslinging . | . . . Exploded . | . . . Melee . | . . . Uniques/NPCs Destroyed . | . . . Combat | -11 -10 -10 -------- Run | Yrd Mat Min Hostile Shots Fired 91 | . 53 38 Missed 23 | . 17 6 Hits 68 | . 36 32 Projectile 68 | . 36 32 AOE 5 | . . 5 Damage Taken 892 | . 516 376 Core 254 | . 97 157 Absorbed by Shields . | . . . Core Remaining (%) 100 | 100 . . Volleys Fired 55 | . 43 12 Largest 2 | . 2 2 Hottest 100 | . 100 100 Shots Fired 102 | . 86 16 Gun 102 | . 86 16 Cannon . | . . . Launcher . | . . . Special . | . . . Kinetic . | . . . Thermal 71 | . 56 15 Explosive . | . . . Electromagnetic 31 | . 30 1 Robot Hit Streak 5 | . 5 5 Robot Miss Streak 7 | . 5 7 Penetration Max . | . . . Secondary Targets . | . . . Shots Hit Robots 56 | . 50 6 Core Hits 26 | . 23 3 Critical Kills . | . . . Critical Parts Destroyed . | . . . Critical Strikes 3 | . 2 1 Burn 3 | . 2 1 Melee Attacks 1 | . 1 . Impact 1 | . 1 . Slashing . | . . . Piercing . | . . . Sneak Attacks . | . . . Combat Hostiles . | . . . Follow-up Attacks . | . . . Damage Inflicted 936 | . 836 100 Guns 771 | . 671 100 Cannons . | . . . Explosions 165 | . 165 . Melee . | . . . Ramming . | . . . Kinetic . | . . . Thermal 634 | . 546 88 Explosive . | . . . Electromagnetic 302 | . 290 12 Impact . | . . . Slashing . | . . . Piercing . | . . . Highest Corruption 1 | . . 1 Average Corruption 1 | . . 1 Corruption Purged . | . . . Corruption Blocked . | . . . Overload Shots . | . . . Overflow Damage . | . . . Projectiles . | . . . Explosions . | . . . Melee . | . . . Knockbacks . | . . . Impact . | . . . Kinetic . | . . . Secondary . | . . . Self-Inflicted Damage 43 | . 43 . Shots 1 | . 1 . Rammed . | . . . Targets Rammed . | . . . Kicked . | . . . Crushed . | . . . Highest Temperature 362 | . 362 207 Average Temperature 139 | . 143 114 Received Heat Transfer 252 | . 252 . Effects 1 | . 1 . Shutdowns 1 | . 1 . Siege Activations . | . . . Martial Activations . | . . . Shielding Activations . | . . . Robots Disrupted . | . . . Combat Hostiles . | . . . Robots Corrupted . | . . . Combat Hostiles . | . . . Parts Fried . | . . . Impact Corruptions . | . . . Robots Melted . | . . . Combat Hostiles . | . . . Parts Melted 4 | . 4 . Heat Transferred 1791 | . 1458 333 Parts Sabotaged . | . . . Parts Stolen . | . . . Parts Stripped . | . . . Power Chain Reactions 3 | . 3 . Alert | -11 -10 -10 ------- Run | Yrd Mat Min Maximum Alert Level . | . . . Low Security (%) 100 | 100 100 100 Level 1 . | . . . Level 2 . | . . . Level 3 . | . . . Level 4 . | . . . Level 5 . | . . . High Security . | . . . Max Security . | . . . Peak Influence 130 | . 130 44 Initial 24 | . . 24 Average 43 | . 62 13 Influence Increases 389 | . 319 70 Destroy 0b10 Robot/C 240 | . 180 60 Destroy 0b10 Robot/NC 20 | . 20 . Destroy Leader 52 | . 42 10 Successful Hack 4 | . 4 . Disable Machine 30 | . 30 . Destroy Structure 13 | . 13 . Lose Combat Pursuer 30 | . 30 . Influence Decreases 389 | . 255 134 Entered New Map 40 | . . 40 Time Decay 289 | . 235 54 Lost Part 60 | . 20 40 Squads Dispatched 1 | . 1 . Investigation . | . . . Extermination . | . . . Reinforcement 1 | . 1 . Assault . | . . . Garrison . | . . . Intercept . | . . . Searches Triggered . | . . . Construction Impeded . | . . . Haulers Reinforced . | . . . Active Scanning Responses . | . . . Cargo Convoy Interrupts . | . . . Stealth | -11 -10 -10 --------- Run | Yrd Mat Min Distress Signals 1 | . . 1 Communications Jammed . | . . . Distress Signals . | . . . Times Spotted 23 | . 13 10 Peak Tracking Total 12 | . 4 12 Tactical Retreats 1 | . 1 . Traps | -11 -10 -10 ------- Run | Yrd Mat Min Traps Triggered . | . . . Indirectly . | . . . Trap Hack Attempts . | . . . Triggered . | . . . Disarmed . | . . . Reprogrammed . | . . . Reused . | . . . Traps Extracted . | . . . Installed . | . . . Triggered . | . . . Machines | -11 -10 -10 ---------- Run | Yrd Mat Min Machines Disabled 2 | . 2 . Max in Single Turn 1 | . 1 . Machines Repaired . | . . . Machines Dismantled . | . . . Machines Sabotaged . | . . . Overloaded Fab Kills . | . . . Hacking | -11 -10 -10 --------- Run | Yrd Mat Min Machines Accessed 2 | . 2 . Terminals 2 | . 2 . Fabricators . | . . . Repair Stations . | . . . Recycling Units . | . . . Scanalyzers . | . . . Garrison Access . | . . . Total Hacks 6 | . 6 . Successful 4 | . 4 . Failed 2 | . 2 . Catastrophic . | . . . Database Lockouts . | . . . Manual . | . . . Terminals 6 | . 6 . Fabricators . | . . . Repair Stations . | . . . Recycling Units . | . . . Scanalyzers . | . . . Garrison Access . | . . . Terminal Hacks 4 | . 4 . Prototype ID Bank 1 | . 1 . Alert Level 1 | . 1 . Locate Traps 1 | . 1 . Zone Layout 1 | . 1 . Fabricator Hacks . | . . . Repair Station Hacks . | . . . Recycling Unit Hacks . | . . . Scanalyzer . | . . . Garrison Access Hacks . | . . . Unauthorized Hacks . | . . . Terminals . | . . . Fabricators . | . . . Repair Stations . | . . . Recycling Units . | . . . Scanalyzers . | . . . Garrison Access . | . . . Data Cores Recovered 1 | . 1 . Used 1 | . 1 . Hacking Detections 2 | . 2 . Full Trace Events . | . . . Feedback Events . | . . . Feedback Blocked . | . . . Robot Schematics Acquired . | . . . Robots Built . | . . . Authchips . | . . . Time . | . . . Total Robot Build Rating . | . . . Part Schematics Acquired . | . . . Parts Built . | . . . Authchips . | . . . Time . | . . . Total Part Build Rating . | . . . Parts Repaired . | . . . Time . | . . . Parts Recycled . | . . . Recycled Matter . | . . . Retrieved Matter . | . . . Retrieved Components . | . . . Parts Scanalyzed . | . . . Part Schematics Acquired . | . . . Parts Damaged . | . . . Bothacking | -11 -10 -10 ------------ Run | Yrd Mat Min Used RIF Installer . | . . . Robots Hacked . | . . . Non-combat . | . . . Combat . | . . . Robot Hacks Applied . | . . . Relay Couplers Released . | . . . Fabnet Peak Effective % . | . . . Robots Rewired . | . . . Allies Hacked . | . . . Hacks Repelled . | . . . Allies | -11 -10 -10 -------- Run | Yrd Mat Min Total Allies . | . . . Largest Group . | . . . Highest-Rated Group . | . . . Highest-Rated Ally . | . . . Total Orders . | . . . Ally Attacks . | . . . Total Damage . | . . . Kills . | . . . Allies Corrupted . | . . . Allies Melted . | . . . Intel | -11 -10 -10 ------- Run | Yrd Mat Min Active Infowar (turns) . | . . . Robot Analysis Total . | . . . Derelict Logs Recovered . | . . . Drone Launches . | . . . Drone Recoveries . | . . . Exploration | -11 -10 -10 ------------- Run | Yrd Mat Min Turns Passed 814 | 77 532 205 Spaces Moved 457 | 54 285 118 Core 19 | 16 . 3 Treads . | . . . Legs 323 | 38 285 . Wheels . | . . . Hover . | . . . Flight 115 | . . 115 Fastest Speed 37 | 50 120 37 Average Speed 99 | 115 120 41 Slowest Speed 200 | 150 120 200 Overloaded Moves . | . . . Propulsion Burnouts . | . . . Robots Hopped 1 | . . 1 Potential Cave-ins . | . . . Cave-ins Triggered . | . . . Exploration Rate (%) 22 | 3 50 14 Regions Visited 2 Branch Regions 1 Pre-discovered Areas . | . . . Known Exits Taken . | . . . Unknown Exits Taken 2 | 1 1 . Scrap Searched 1 | . . 1 Spaces Dug . | . . . Terrain Destroyed 13 | . 13 . Melee . | . . . Projectile . | . . . AOE 13 | . 13 . Terrain Rammed . | . . . Walls Destroyed . | . . . Machines Disabled . | . . . Actions | -11 -10 -10 --------- Run | Yrd Mat Min Total 714 | 68 388 258 Wait 150 | . 31 119 Move 453 | 53 284 116 Hop 1 | . . 1 Pick Up 26 | 9 14 3 Fast Attach . | . . . Attach 15 | 6 4 5 Detach 1 | . . 1 Swap 5 | . 5 . Drop 7 | . 6 1 Fire 55 | . 43 12 Melee 1 | . 1 . Ram . | . . . Kick . | . . . Crush . | . . . Escape Stasis . | . . . Rewire . | . . . Trap . | . . . Miscellaneous . | . . . Route ------- -11/Scrapyard -10/Materials (discovered 2 exits: [*Mat] / [*Min]) -10/Mines History --------- Turn | Location | Event 15 | -11/Scrapyard | Discovered new exit (range 16) 78 | -11/Scrapyard | Entered Materials 309 | -10/Materials | Build established: Mutant 490 | -10/Materials | Discovered new exit (range 16) 579 | -10/Materials | Discovered new exit (range 11) 610 | -10/Materials | Entered Mines 617 | -10/Mines | Core integrity fell below 50% 656 | -10/Mines | Assembled infested the area 668 | -10/Mines | Lost 4 parts (2n2w) 814 | -10/Mines | Core integrity fell below 20% 815 | -10/Mines | Destroyed by D-53 Grenadier with Mini Grenade Launcher Last Messages --------------- 00655_ Found Grenade Launcher. 00655_ Found 37 Matter. 00656_ ALERT: Infestation in the mines, dispatching Demolisher response squad. 00656_ Acquired Grenade Launcher. 00668_ T-07 Excavator is excavating. 00731_ Dropped Corrupted Imp. Heat Sink. 00733_ Acquired Flight Unit. 00795_ R-06 Scavenger collects Corrupted Imp. Heat Sink. 00804_ R-06 Scavenger collects Lgt. Ion Engine. 00811_ Lgt. Ion Engine destroyed. 00811_ D-53 Grenadier destroyed. 00812_ Integrated Corrupted Lgt. Ion Engine (+1). 00812_ Complication: Energy sink damages Corrupted Lgt. Ion Engine (-13). 00813_ U-05 Engineer lays Concrete. 00813_ Flight Unit destroyed. 00814_ The unstable cave ceiling collapses. Map ----- +----------------------------------------------------+ | ??# #????????????????????????????????????? | | ??# #????????????????????????????????????? | | ??# = #????????????????????????????????????? | | ??# #????????????????????????????????????? | | ??# """ #????????????????????????????????????? | | ??# """ % #????????????????????????????????????? | | ??# """% #????????????????????????????????????? | | ??# #????????????????????????????????????? | | ??# """ #????????????????????????????????????? | | ??# """ #????????????????????????????????????? | | ??# """ #????????????????????????????????????? | | ??# #????????????????????????????????????? | | ??##### ##????????????????????????????????????? | | ??????# #??????######?????????????????????????? | | ??????# #?????## # #?????????????????????????? | | ??????# !####### # #?????????????????????????? | | ??????#! %! #?????????????????????????? | | ??????########## ###???????????????????????? | | ???????????????# # #???????????????????????? | | ???????????????# #???????????????????????? | | ???????????????# ##??????????????????????? | | ?????????# ##### d ##?????????????????????? | | ??????# + #?????????????????????? | | ??????# + ##????????????????????? | | ??????# ###### #????????????????????? | | ??????######?????# # #@ ##????????????????????? | | ?????????????????#### # ????????????????????? | | ????????????????????# # # #???????????????????? | | ??????????????????? u # #???????????????????? | | ?????????????????? <# ???????????????????? | | ????????????????? ??????????????????? | | ????????????????## ?????????????????? | | ?????????????????## ?????????????????? | | ??????????????????## ????????????????? | | ????????????????????# #? ???????????????? | | ?????????????????????# %##? ???????????????? | | ?????????????????????# ??? ?????????????????? | | ????????????????????? ?????????????????????? | | ????????????????????? ###?????????????????????? | | ????????????????????? ????????????????????????? | | ????????????????????? #????????????????????????? | | ???????????????????????????????????????????????? | | ???????????????????????????????????????????????? | | ???????????????????????????????????????????????? | | ???????????????????????????????????????????????? | | ???????????????????????????????????????????????? | | ???????????????????????????????????????????????? | | ???????????????????????????????????????????????? | | ???????????????????????????????????????????????? | | ???????????????????????????????????????????????? | +----------------------------------------------------+ Best States ------------- Heat Dissipation 25 Energy Generation 10 Energy Capacity 125 Matter Stores 300 Matter Capacity 300 Sight Range 16 Terrain Scan Density 10 Evasion (%) 62 Offensive Hacking 10 Item Schematics ----------------- None Robot Schematics ------------------ None Fabricated ------------ Nothing Repaired ---------- Nothing Alien Tech Used ----------------- None Achievements -------------- None Challenges ------------ None Game ------ Seed SwordShieldNukerbomber Manual? 0 Play Time 00:09:56 Cumulative 48.5 hours Start 2025.08.07 @ 18:42:27 End 2025.08.07 @ 18:50:37 Sessions 1 Manual Loads 0 Difficulty Rogue Special Mode None Game No. 34 Rogue 34 Adventurer 0 Explorer 0 Win Type - Total 1 Types 1/0/0/0/0/0/0/0/0/0 Lore% 45 Gallery% 39 Achievement% 35 Wizard Run 0 Options --------- Layout 1 ASCII 0 Keyboard 0 Movement Mouse Keybinds 0 Fullscreen 1 Font 24/Smallcaps Map View 50x35 Zoom Use 0% Tactical HUD 1 Map Filters NONE Filters NONE Steam 1 RUN: fd4e4b03-9af5-4fe4-95dd-9b59101bdd12